[Event "XXXV Open Int. de Benasque"]
[Site "Benasque"]
[Date "2015.07.08"]
[Round "7"]
[White "Kharitonov, Alexandr"]
[Black "Rodshtein, Maxim"]
[Result "1/2-1/2"]
[ECO "A50"]
[WhiteElo "2536"]
[BlackElo "2678"]
[Annotator "Robot 9"]
[PlyCount "51"]
[EventDate "2015.??.??"]
[EventCountry "ESP"]
[TimeControl "5400+30"]

1. d4 {[%emt 0:00:00]} Nf6 {[%emt 0:00:03]} 2. c4 {[%emt 0:00:00]} b6 {[%emt 0:
00:15]} 3. Nc3 {[%emt 0:03:06]} Bb7 {[%emt 0:00:05]} 4. Qc2 {[%emt 0:06:39]} d5
{[%emt 0:00:12]} 5. cxd5 {[%emt 0:00:22]} Nxd5 {[%emt 0:00:05]} 6. Nf3 {[%emt
0:00:11]} Nxc3 {[%emt 0:05:16]} 7. bxc3 {[%emt 0:00:47]} g6 {[%emt 0:02:38]} 8.
e4 {[%emt 0:01:42]} Bg7 {[%emt 0:00:06]} 9. Bb5+ {[%emt 0:03:13]} Nd7 {[%emt 0:
04:43]} 10. O-O {[%emt 0:01:03]} O-O 11. Rd1 {[%emt 0:07:46]} c6 {[%emt 0:02:
54]} 12. Bf1 {[%emt 0:03:23]} Qc7 {[%emt 0:00:47]} 13. Bg5 {[%emt 0:01:18]} c5
{[%emt 0:15:02]} 14. Bxe7 {[%emt 0:07:46]} Rfe8 {[%emt 0:00:48]} 15. d5 {[%emt
0:00:09]} Qf4 {[%emt 0:06:04]} 16. Bg5 {[%emt 0:03:17]} Qxe4 {[%emt 0:00:12]}
17. Bd3 {[%emt 0:03:45]} Qg4 {[%emt 0:00:07]} 18. h3 {[%emt 0:00:59]} Qh5 {
[%emt 0:00:04]} 19. Bb5 {[%emt 0:04:44]} Ne5 {[%emt 0:02:21]} 20. Nxe5 {[%emt
0:00:23]} Rxe5 {[%emt 0:00:06]} 21. f4 {[%emt 0:01:20]} Rxg5 {[%emt 0:09:08]}
22. fxg5 {[%emt 0:00:07]} Qxg5 {[%emt 0:00:09]} 23. Bc6 {[%emt 0:00:34]} Bxc6 {
[%emt 0:10:41]} 24. dxc6 {[%emt 0:00:04]} Rc8 {[%emt 0:02:31]} 25. Qd3 {[%emt
0:03:29]} Be5 {[%emt 0:03:20]} 26. Qf3 {[%emt 0:04:35]} 1/2-1/2

[Event "XXXV Open Int. de Benasque"]
[Site "Benasque"]
[Date "2015.07.08"]
[Round "7"]
[White "Adhiban, B."]
[Black "Grigoriants, Sergey"]
[Result "1-0"]
[ECO "C26"]
[WhiteElo "2627"]
[BlackElo "2594"]
[Annotator "Robot 9"]
[PlyCount "115"]
[EventDate "2015.??.??"]
[EventCountry "ESP"]
[TimeControl "5400+30"]

1. e4 {[%emt 0:03:09]} e5 {[%emt 0:00:35]} 2. Nc3 {[%emt 0:00:05]} Nf6 {[%emt
0:03:23]} 3. g3 {[%emt 0:00:05]} d5 {[%emt 0:02:55]} 4. exd5 {[%emt 0:00:03]}
Nxd5 {[%emt 0:00:05]} 5. Bg2 {[%emt 0:00:04]} Nxc3 {[%emt 0:00:41]} 6. bxc3 {
[%emt 0:00:02]} Bd6 {[%emt 0:00:21]} 7. Nf3 {[%emt 0:00:11]} O-O {[%emt 0:00:
17]} 8. O-O {[%emt 0:00:04]} Nd7 {[%emt 0:03:25]} 9. d4 {[%emt 0:00:10]} exd4 {
[%emt 0:10:57]} 10. cxd4 {[%emt 0:00:02]} Nb6 {[%emt 0:00:18]} 11. Re1 {[%emt
0:11:21]} h6 {[%emt 0:22:28]} 12. Qd3 {[%emt 0:00:09]} Qf6 {[%emt 0:02:58]} 13.
c4 {[%emt 0:00:54]} c5 {[%emt 0:07:09]} 14. Bb2 {[%emt 0:01:59]} Na4 {[%emt 0:
05:53]} 15. dxc5 {[%emt 0:00:18]} Nxb2 {[%emt 0:00:23]} 16. Qxd6 {[%emt 0:00:
05]} Be6 {[%emt 0:14:48]} 17. Qd4 {[%emt 0:07:47]} Rfd8 {[%emt 0:13:59]} 18.
Qxf6 {[%emt 0:00:10]} gxf6 {[%emt 0:00:01]} 19. Reb1 {[%emt 0:02:16]} Na4 {
[%emt 0:01:08]} 20. Rxb7 {[%emt 0:00:20]} Nxc5 {[%emt 0:00:05]} 21. Rb5 {[%emt
0:17:22]} Rac8 {[%emt 0:00:15]} 22. Ra5 {[%emt 0:00:11]} Rc7 {[%emt 0:02:24]}
23. Bf1 {[%emt 0:00:20]} Ne4 {[%emt 0:02:03]} 24. Rc1 {[%emt 0:09:57]} Kf8 {
[%emt 0:01:37]} 25. a3 {[%emt 0:02:12]} Bg4 {[%emt 0:00:37]} 26. Be2 {[%emt 0:
15:50]} Nc5 {[%emt 0:03:14]} 27. Rb5 {[%emt 0:05:10]} Re8 {[%emt 0:00:21]} 28.
h3 {[%emt 0:00:23]} Bxh3 {[%emt 0:00:16]} 29. Bf1 {[%emt 0:01:48]} Bg4 {[%emt
0:01:07]} 30. Nd4 {[%emt 0:01:47]} Rd8 {[%emt 0:00:15]} 31. Nc2 {[%emt 0:01:17]
} Nd3 {[%emt 0:00:51]} 32. Ra1 {[%emt 0:00:37]} Ne5 {[%emt 0:00:39]} 33. Ne3 {
[%emt 0:00:17]} Be6 {[%emt 0:00:01]} 34. Rb2 {[%emt 0:01:33]} Nf3+ {[%emt 0:00:
53]} 35. Kg2 {[%emt 0:00:24]} Ne5 {[%emt 0:00:05]} 36. Rc1 {[%emt 0:00:59]}
Rdc8 {[%emt 0:00:26]} 37. Rbc2 {[%emt 0:00:32]} Rc5 {[%emt 0:00:11]} 38. f4 {
[%emt 0:01:01]} Nd7 {[%emt 0:00:05]} 39. g4 {[%emt 0:02:19]} Nb6 {[%emt 0:00:
04]} 40. Kg3 {[%emt 0:00:06]} Kg7 {[%emt 0:00:57]} 41. Rd2 {[%emt 0:00:42]} Kf8
{[%emt 0:00:17]} 42. Rd4 {[%emt 0:04:05]} Ra5 {[%emt 0:00:15]} 43. Rc3 {[%emt
0:00:53]} Rac5 {[%emt 0:00:01]} 44. Bd3 {[%emt 0:00:22]} Ke7 {[%emt 0:00:51]}
45. Re4 {[%emt 0:01:52]} Kf8 {[%emt 0:00:02]} 46. Rd4 {[%emt 0:00:08]} Ke7 {
[%emt 0:00:00]} 47. Bf5 {[%emt 0:00:50]} Nxc4 {[%emt 0:02:50]} 48. Nd5+ {[%emt
0:00:21]} Kf8 {[%emt 0:00:40]} 49. Bxe6 {[%emt 0:00:17]} fxe6 {[%emt 0:00:04]}
50. Nxf6 {[%emt 0:00:03]} Nb6 {[%emt 0:00:23]} 51. Rxc5 {[%emt 0:02:28]} Rxc5 {
[%emt 0:00:01]} 52. Kh4 {[%emt 0:00:34]} Rc4 {[%emt 0:01:30]} 53. Rxc4 {[%emt
0:02:09]} Nxc4 54. a4 Nb2 {[%emt 0:00:27]} 55. Kh5 {[%emt 0:00:28]} Kg7 {[%emt
0:00:21]} 56. Ne8+ {[%emt 0:00:13]} Kh7 {[%emt 0:00:01]} 57. g5 {[%emt 0:00:52]
} hxg5 {[%emt 0:00:06]} 58. fxg5 {[%emt 0:00:02]} 1-0

[Event "XXXV Open Int. de Benasque"]
[Site "Benasque"]
[Date "2015.07.08"]
[Round "7"]
[White "Romanov, Evgeny"]
[Black "Antal, Gergely"]
[Result "1/2-1/2"]
[ECO "A34"]
[WhiteElo "2575"]
[BlackElo "2512"]
[Annotator "Robot 9"]
[PlyCount "62"]
[EventDate "2015.??.??"]
[EventCountry "ESP"]
[TimeControl "5400+30"]

1. c4 Nf6 2. Nc3 c5 3. Nf3 d5 4. cxd5 Nxd5 5. e4 Nb4 6. Bb5+ N8c6 7. d4 cxd4 8.
a3 dxc3 9. Qxd8+ Kxd8 10. axb4 cxb2 11. Bxb2 e6 12. O-O f6 13. e5 f5 14. Rfd1+
Ke8 15. Rac1 Bd7 16. Nd4 Bxb4 17. Nxc6 Bxc6 18. Bxc6+ bxc6 19. Rxc6 Rd8 20.
Rxd8+ Kxd8 21. Rxe6 Kc7 22. Ra6 Bc5 23. Kf1 Rb8 24. Ra2 Kc6 25. Ba3 Bd4 26. e6
Re8 27. Rc2+ Kd5 28. e7 Ke6 29. Ke2 Bf6 30. Rc7 Bxe7 31. Rxa7 Bxa3 1/2-1/2

[Event "XXXV Open Int. de Benasque"]
[Site "Benasque"]
[Date "2015.07.08"]
[Round "7"]
[White "Jakubowski, Krzysztof"]
[Black "Campora, Daniel H"]
[Result "0-1"]
[ECO "A16"]
[WhiteElo "2565"]
[BlackElo "2437"]
[Annotator "Robot 9"]
[PlyCount "106"]
[EventDate "2015.??.??"]
[EventCountry "ESP"]
[TimeControl "5400+30"]

1. c4 Nf6 2. Nc3 c5 3. e4 Nc6 4. g3 d6 5. Bg2 g6 6. Nge2 Bg7 7. O-O O-O 8. d3
Bd7 9. h3 {[%emt 0:12:03]} a6 {[%emt 0:12:29]} 10. Be3 {[%emt 0:00:30]} Rb8 {
[%emt 0:00:30]} 11. a4 {[%emt 0:00:30]} Ne8 {[%emt 0:00:30]} 12. d4 {[%emt 0:
00:30]} cxd4 {[%emt 0:01:42]} 13. Nxd4 {[%emt 0:00:38]} Nc7 {[%emt 0:03:07]}
14. a5 {[%emt 0:29:19]} Ne6 {[%emt 0:08:54]} 15. Nb3 {[%emt 0:02:03]} Ne5 {
[%emt 0:03:22]} 16. Nd2 {[%emt 0:03:58]} Rc8 {[%emt 0:01:02]} 17. Qb3 {[%emt 0:
02:40]} Nc5 {[%emt 0:01:49]} 18. Qa3 {[%emt 0:00:06]} Be6 {[%emt 0:12:29]} 19.
Nd5 {[%emt 0:02:14]} f5 {[%emt 0:03:19]} 20. exf5 {[%emt 0:00:21]} Bxf5 {[%emt
0:03:18]} 21. Bg5 {[%emt 0:04:55]} Rf7 {[%emt 0:02:10]} 22. g4 {[%emt 0:01:04]}
Bd3 {[%emt 0:01:33]} 23. Rfe1 {[%emt 0:00:33]} h6 {[%emt 0:09:40]} 24. Be3 {
[%emt 0:00:34]} Bxc4 {[%emt 0:06:56]} 25. Nb6 {[%emt 0:00:25]} Bb5 {[%emt 0:04:
52]} 26. Nxc8 {[%emt 0:00:45]} Qxc8 {[%emt 0:00:11]} 27. Bxc5 {[%emt 0:09:24]}
dxc5 {[%emt 0:00:05]} 28. Re3 {[%emt 0:00:14]} Kh7 {[%emt 0:02:29]} 29. Rae1 {
[%emt 0:01:41]} Qd8 {[%emt 0:01:54]} 30. Ne4 {[%emt 0:09:41]} Nc4 {[%emt 0:01:
41]} 31. Rd3 {[%emt 0:00:32]} Qxa5 {[%emt 0:02:08]} 32. Qxa5 {[%emt 0:00:30]}
Nxa5 {[%emt 0:00:06]} 33. Rf3 {[%emt 0:01:28]} Rxf3 {[%emt 0:01:52]} 34. Bxf3 {
[%emt 0:00:04]} Bd4 {[%emt 0:02:43]} 35. Nc3 {[%emt 0:02:07]} e5 {[%emt 0:00:
06]} 36. Nxb5 {[%emt 0:00:06]} axb5 {[%emt 0:00:04]} 37. Bd5 {[%emt 0:01:29]}
c4 {[%emt 0:02:03]} 38. Re2 {[%emt 0:00:34]} b4 {[%emt 0:00:17]} 39. Kf1 {
[%emt 0:00:19]} g5 {[%emt 0:00:31]} 40. Ke1 {[%emt 0:00:48]} b3 {[%emt 0:01:28]
} 41. Kd1 {[%emt 0:00:32]} Kg7 {[%emt 0:00:52]} 42. Kc1 {[%emt 0:00:38]} Kf6 {
[%emt 0:00:18]} 43. f3 {[%emt 0:00:09]} Ke7 {[%emt 0:00:20]} 44. Rh2 {[%emt 0:
00:12]} Kd6 {[%emt 0:00:16]} 45. Be4 {[%emt 0:00:25]} Be3+ {[%emt 0:01:00]} 46.
Kb1 {[%emt 0:00:06]} b5 {[%emt 0:00:37]} 47. h4 {[%emt 0:00:04]} gxh4 {[%emt 0:
00:58]} 48. Rxh4 {[%emt 0:00:03]} b4 {[%emt 0:00:10]} 49. Rh5 {[%emt 0:00:33]}
c3 {[%emt 0:02:01]} 50. Rf5 {[%emt 0:00:55]} Nc4 {[%emt 0:00:37]} 51. Rf6+ {
[%emt 0:00:09]} Ke7 {[%emt 0:00:34]} 52. Rc6 {[%emt 0:00:12]} Nd2+ {[%emt 0:00:
10]} 53. Ka1 {[%emt 0:00:04]} Bd4 {[%emt 0:00:21]} 0-1

[Event "XXXV Open Int. de Benasque"]
[Site "Benasque"]
[Date "2015.07.08"]
[Round "7"]
[White "Cori, Jorge"]
[Black "Granda Zuniga, Julio E"]
[Result "1/2-1/2"]
[ECO "A40"]
[WhiteElo "2623"]
[BlackElo "2652"]
[Annotator "Robot 9"]
[PlyCount "77"]
[EventDate "2015.??.??"]
[EventCountry "ESP"]
[TimeControl "5400+30"]

1. d4 {[%emt 0:00:27]} Nf6 {[%emt 0:00:04]} 2. c4 {[%emt 0:00:50]} e6 {[%emt 0:
02:48]} 3. g3 {[%emt 0:02:07]} d5 {[%emt 0:05:51]} 4. Nf3 {[%emt 0:00:41]} Nbd7
{[%emt 0:03:37]} 5. Bg2 {[%emt 0:12:22]} dxc4 {[%emt 0:04:55]} 6. Nfd2 {[%emt
0:22:38]} e5 {[%emt 0:17:04]} 7. Nxc4 {[%emt 0:01:51]} exd4 {[%emt 0:00:05]} 8.
Qxd4 {[%emt 0:00:07]} Bc5 {[%emt 0:00:06]} 9. Qh4 {[%emt 0:01:32]} O-O {[%emt
0:02:45]} 10. O-O {[%emt 0:00:13]} Nb6 {[%emt 0:14:43]} 11. Nc3 {[%emt 0:06:06]
} Ng4 {[%emt 0:04:53]} 12. Qxd8 {[%emt 0:00:46]} Rxd8 {[%emt 0:00:30]} 13. Nxb6
{[%emt 0:00:30]} axb6 {[%emt 0:00:30]} 14. Bg5 {[%emt 0:00:30]} f6 {[%emt 0:00:
30]} 15. Bf4 {[%emt 0:00:30]} c6 {[%emt 0:03:22]} 16. Ne4 {[%emt 0:27:03]} Be6
{[%emt 0:01:40]} 17. Nxc5 {[%emt 0:03:25]} bxc5 {[%emt 0:00:07]} 18. Bh3 {
[%emt 0:03:10]} Re8 {[%emt 0:09:48]} 19. a3 {[%emt 0:05:45]} f5 {[%emt 0:05:03]
} 20. Rac1 {[%emt 0:00:58]} c4 {[%emt 0:00:19]} 21. Bxg4 {[%emt 0:02:14]} fxg4
{[%emt 0:00:02]} 22. f3 {[%emt 0:00:07]} Ra5 {[%emt 0:04:09]} 23. Rfe1 {[%emt
0:01:32]} Rb5 {[%emt 0:00:36]} 24. Rc2 {[%emt 0:05:34]} Bf5 {[%emt 0:00:26]}
25. Rd2 {[%emt 0:00:49]} gxf3 {[%emt 0:00:18]} 26. Kf2 {[%emt 0:00:03]} fxe2 {
[%emt 0:02:20]} 27. Rexe2 {[%emt 0:00:08]} Rxe2+ {[%emt 0:00:09]} 28. Kxe2 {
[%emt 0:00:59]} Bd3+ {[%emt 0:01:07]} 29. Kf3 {[%emt 0:00:48]} g5 {[%emt 0:01:
47]} 30. Be3 {[%emt 0:00:38]} Re5 {[%emt 0:01:45]} 31. g4 {[%emt 0:00:35]} Kf7
{[%emt 0:00:40]} 32. Bd4 {[%emt 0:00:13]} Rb5 {[%emt 0:09:04]} 33. Ke3 {[%emt
0:00:35]} Ke6 {[%emt 0:01:17]} 34. Rf2 {[%emt 0:00:09]} Bg6 {[%emt 0:00:08]}
35. Bc3 {[%emt 0:00:33]} Ke7 {[%emt 0:01:14]} 36. Rd2 {[%emt 0:00:51]} Bf7 {
[%emt 0:01:09]} 37. a4 {[%emt 0:00:11]} Rd5 {[%emt 0:02:38]} 38. Rxd5 {[%emt 0:
00:18]} Bxd5 {[%emt 0:00:13]} 39. a5 {[%emt 0:00:14]} 1/2-1/2

[Event "XXXV Open Int. de Benasque"]
[Site "Benasque"]
[Date "2015.07.08"]
[Round "7"]
[White "Naroditsky, Daniel"]
[Black "Oratovsky, Michael"]
[Result "1-0"]
[ECO "C41"]
[WhiteElo "2622"]
[BlackElo "2490"]
[Annotator "Robot 9"]
[PlyCount "51"]
[EventDate "2015.??.??"]
[EventCountry "ESP"]
[TimeControl "5400+30"]

1. e4 {[%emt 0:00:00]} d6 {[%emt 0:06:24]} 2. d4 {[%emt 0:00:00]} Nf6 {[%emt 0:
00:06]} 3. Nc3 {[%emt 0:00:00]} e5 {[%emt 0:00:03]} 4. Nf3 {[%emt 0:00:05]}
Nbd7 {[%emt 0:00:05]} 5. a4 {[%emt 0:00:33]} c6 {[%emt 0:17:23]} 6. Bc4 {[%emt
0:02:03]} Be7 {[%emt 0:02:41]} 7. O-O {[%emt 0:01:05]} O-O {[%emt 0:00:13]} 8.
h3 {[%emt 0:02:14]} Nxe4 {[%emt 0:13:50]} 9. Nxe4 {[%emt 0:00:47]} d5 {[%emt 0:
03:06]} 10. Re1 {[%emt 0:01:22]} exd4 {[%emt 0:20:38]} 11. Bxd5 {[%emt 0:01:52]
} cxd5 {[%emt 0:00:03]} 12. Ng3 {[%emt 0:00:49]} d3 {[%emt 0:07:59]} 13. Qxd3 {
[%emt 0:02:04]} Nc5 {[%emt 0:00:35]} 14. Qd1 {[%emt 0:11:29]} Be6 {[%emt 0:16:
49]} 15. Bf4 {[%emt 0:11:35]} Rc8 {[%emt 0:01:14]} 16. Nd4 {[%emt 0:05:03]} Qd7
{[%emt 0:01:59]} 17. Be5 {[%emt 0:06:07]} Rfe8 {[%emt 0:02:04]} 18. Nxe6 {
[%emt 0:03:18]} Nxe6 {[%emt 0:02:06]} 19. Nf5 {[%emt 0:03:43]} Bf8 {[%emt 0:01:
09]} 20. b3 {[%emt 0:09:43]} f6 {[%emt 0:00:36]} 21. Bb2 {[%emt 0:00:07]} Ng5 {
[%emt 0:00:50]} 22. Rxe8 {[%emt 0:06:39]} Rxe8 {[%emt 0:00:02]} 23. Ne3 {[%emt
0:00:15]} Rd8 {[%emt 0:00:43]} 24. Qd3 {[%emt 0:03:49]} Bc5 {[%emt 0:00:43]}
25. Rd1 {[%emt 0:01:21]} Ne4 {[%emt 0:00:36]} 26. Nxd5 1-0

[Event "XXXV Open Int. de Benasque"]
[Site "Benasque"]
[Date "2015.07.08"]
[Round "7"]
[White "Vocaturo, Daniele"]
[Black "Ubilava, Elizbar"]
[Result "1/2-1/2"]
[ECO "C89"]
[WhiteElo "2572"]
[BlackElo "2480"]
[Annotator "Robot 9"]
[PlyCount "103"]
[EventDate "2015.??.??"]
[EventCountry "ESP"]
[TimeControl "5400+30"]

1. e4 {[%emt 0:00:00]} e5 {[%emt 0:00:00]} 2. Nf3 {[%emt 0:00:41]} Nc6 {[%emt
0:00:00]} 3. Bb5 {[%emt 0:01:07]} a6 {[%emt 0:00:04]} 4. Ba4 {[%emt 0:00:11]}
Nf6 {[%emt 0:00:25]} 5. O-O {[%emt 0:00:39]} Be7 {[%emt 0:00:16]} 6. Re1 {
[%emt 0:00:38]} b5 {[%emt 0:00:13]} 7. Bb3 {[%emt 0:00:08]} O-O {[%emt 0:00:08]
} 8. c3 {[%emt 0:01:34]} d5 {[%emt 0:00:18]} 9. exd5 {[%emt 0:00:57]} Nxd5 {
[%emt 0:00:11]} 10. Nxe5 {[%emt 0:00:36]} Nxe5 {[%emt 0:00:07]} 11. Rxe5 {
[%emt 0:00:03]} c6 {[%emt 0:00:05]} 12. d3 {[%emt 0:02:35]} Bd6 {[%emt 0:00:15]
} 13. Re1 {[%emt 0:00:39]} Bf5 {[%emt 0:00:39]} 14. Qf3 {[%emt 0:02:45]} Qh4 {
[%emt 0:00:41]} 15. g3 {[%emt 0:02:57]} Qh3 {[%emt 0:00:11]} 16. Bxd5 {[%emt 0:
05:17]} cxd5 {[%emt 0:01:09]} 17. Qxd5 {[%emt 0:03:22]} Rad8 {[%emt 0:04:54]}
18. Qg2 {[%emt 0:02:18]} Qh5 {[%emt 0:07:24]} 19. Be3 {[%emt 0:04:21]} Bxd3 {
[%emt 0:13:12]} 20. Nd2 {[%emt 0:03:39]} Qg6 {[%emt 0:16:13]} 21. Bd4 {[%emt 0:
05:18]} Bf5 {[%emt 0:07:05]} 22. a4 {[%emt 0:09:20]} b4 {[%emt 0:06:08]} 23.
Nc4 {[%emt 0:01:54]} bxc3 {[%emt 0:08:42]} 24. bxc3 {[%emt 0:00:42]} Bd7 {
[%emt 0:01:13]} 25. Qe4 {[%emt 0:10:35]} Bf5 {[%emt 0:02:35]} 26. Qh4 {[%emt 0:
05:01]} Rfe8 {[%emt 0:03:26]} 27. Re3 {[%emt 0:06:03]} Rb8 {[%emt 0:06:30]} 28.
Nxd6 {[%emt 0:03:58]} Qxd6 {[%emt 0:01:11]} 29. Qg5 {[%emt 0:00:32]} Qg6 {
[%emt 0:01:24]} 30. Rae1 {[%emt 0:00:55]} Rxe3 {[%emt 0:01:32]} 31. Qxe3 {
[%emt 0:00:07]} h5 {[%emt 0:02:18]} 32. h4 {[%emt 0:06:38]} Bd7 {[%emt 0:01:41]
} 33. a5 {[%emt 0:02:33]} Bc6 {[%emt 0:01:20]} 34. Kh2 {[%emt 0:05:14]} Rb5 {
[%emt 0:02:54]} 35. Qe7 {[%emt 0:02:46]} Kh7 36. Qc7 {[%emt 0:02:53]} Rb7 {
[%emt 0:07:15]} 37. Qc8 {[%emt 0:01:18]} Be4 {[%emt 0:03:17]} 38. Qf8 {[%emt 0:
01:56]} f6 {[%emt 0:00:30]} 39. Qc8 {[%emt 0:00:29]} Rb2 {[%emt 0:01:20]} 40.
Qxa6 {[%emt 0:02:27]} Qf5 {[%emt 0:00:30]} 41. Qf1 {[%emt 0:00:03]} Ra2 {[%emt
0:00:40]} 42. Ra1 {[%emt 0:03:53]} Rxa1 {[%emt 0:01:02]} 43. Qxa1 {[%emt 0:00:
01]} Qf3 {[%emt 0:00:10]} 44. Qf1 {[%emt 0:00:08]} Kg6 {[%emt 0:00:21]} 45. a6
{[%emt 0:00:11]} Kf7 {[%emt 0:00:24]} 46. Be3 {[%emt 0:00:30]} Kg6 {[%emt 0:00:
23]} 47. a7 {[%emt 0:00:11]} Kh7 48. Bd4 g5 {[%emt 0:01:26]} 49. Be3 {[%emt 0:
01:23]} Kg6 {[%emt 0:01:28]} 50. Qg1 {[%emt 0:00:45]} Kh6 {[%emt 0:00:52]} 51.
Qf1 {[%emt 0:00:40]} Kg6 {[%emt 0:00:13]} 52. Qg1 {[%emt 0:00:10]} 1/2-1/2

[Event "XXXV Open Int. de Benasque"]
[Site "Benasque"]
[Date "2015.07.08"]
[Round "7"]
[White "Forcen Esteban, Daniel"]
[Black "Gretarsson, Hjorvar Steinn"]
[Result "0-1"]
[ECO "C85"]
[WhiteElo "2539"]
[BlackElo "2559"]
[Annotator "Robot 9"]
[PlyCount "82"]
[EventDate "2015.??.??"]
[EventCountry "ESP"]
[TimeControl "5400+30"]

1. e4 e5 2. Nf3 Nc6 3. Bb5 a6 4. Ba4 Nf6 5. O-O Be7 6. Bxc6 dxc6 7. d3 Bg4 8.
h3 Bxf3 9. Qxf3 O-O 10. Nd2 Nd7 11. Nc4 Bf6 12. Qg3 Re8 13. f4 b5 14. Ne3 exf4
15. Qxf4 Ne5 16. Nf5 Kh8 17. Qf2 Ng6 18. Rb1 Re6 19. Be3 Qd7 20. g4 Rae8 21. g5
Bd8 22. h4 Ne5 23. Qg3 f6 24. Nd4 Rd6 25. Nb3 Ng4 26. Bc5 fxg5 27. Bxd6 cxd6
28. hxg5 Bxg5 29. Rf5 Be3+ 30. Kh1 g6 31. Rf3 Re5 32. Kg2 Rg5 33. Kf1 Rh5 34.
Kg2 Rh2+ 35. Qxh2 Nxh2 36. Rxe3 Ng4 37. Rg3 c5 38. Nd2 h5 39. Rh1 Kg7 40. Rf3
Qe6 41. Nf1 Qxa2 0-1

[Event "XXXV Open Int. de Benasque"]
[Site "Benasque"]
[Date "2015.07.09"]
[Round "8"]
[White "Granda Zuniga, Julio E"]
[Black "Naroditsky, Daniel"]
[Result "1/2-1/2"]
[ECO "A01"]
[WhiteElo "2652"]
[BlackElo "2622"]
[Annotator "Robot 9"]
[PlyCount "126"]
[EventDate "2015.??.??"]
[EventCountry "ESP"]
[TimeControl "5400+30"]

1. b3 {[%emt 0:00:00]} e5 {[%emt 0:00:37]} 2. Bb2 {[%emt 0:00:04]} Nc6 {[%emt
0:00:08]} 3. e3 {[%emt 0:00:51]} Nf6 {[%emt 0:00:48]} 4. Bb5 {[%emt 0:00:50]}
e4 {[%emt 0:01:13]} 5. Ne2 {[%emt 0:01:54]} a6 {[%emt 0:08:47]} 6. Bxc6 {[%emt
0:00:21]} dxc6 {[%emt 0:00:12]} 7. Ng3 {[%emt 0:03:34]} h5 {[%emt 0:07:53]} 8.
Nc3 {[%emt 0:03:29]} Bg4 {[%emt 0:02:32]} 9. f3 {[%emt 0:21:18]} exf3 {[%emt 0:
00:21]} 10. gxf3 {[%emt 0:00:04]} h4 {[%emt 0:02:33]} 11. Nf1 {[%emt 0:13:20]}
Bh5 {[%emt 0:02:44]} 12. Qe2 {[%emt 0:00:10]} Qd7 {[%emt 0:03:36]} 13. d3 {
[%emt 0:00:34]} O-O-O {[%emt 0:06:22]} 14. O-O-O {[%emt 0:09:33]} Nd5 {[%emt 0:
05:07]} 15. e4 {[%emt 0:01:22]} Nxc3 {[%emt 0:01:10]} 16. Bxc3 {[%emt 0:00:02]}
Qh3 {[%emt 0:06:30]} 17. Nd2 {[%emt 0:00:08]} Bc5 {[%emt 0:00:13]} 18. Qf1 {
[%emt 0:13:46]} Qe6 {[%emt 0:06:01]} 19. Re1 {[%emt 0:01:28]} h3 {[%emt 0:01:
04]} 20. Nc4 {[%emt 0:02:45]} Rhg8 {[%emt 0:11:56]} 21. Ne3 {[%emt 0:06:37]}
Bxe3+ {[%emt 0:02:18]} 22. Rxe3 {[%emt 0:00:01]} g5 {[%emt 0:01:21]} 23. Rg1 {
[%emt 0:02:06]} Rde8 {[%emt 0:01:25]} 24. Re1 {[%emt 0:03:50]} g4 {[%emt 0:06:
00]} 25. fxg4 {[%emt 0:00:07]} Bxg4 {[%emt 0:00:33]} 26. a4 {[%emt 0:00:51]} f5
{[%emt 0:02:48]} 27. Qf4 {[%emt 0:00:42]} Qd6 {[%emt 0:01:03]} 28. e5 {[%emt 0:
04:52]} Qe6 {[%emt 0:01:44]} 29. Qe3 {[%emt 0:00:42]} Kb8 {[%emt 0:02:10]} 30.
a5 {[%emt 0:00:07]} Rg6 {[%emt 0:02:26]} 31. Kb2 {[%emt 0:00:12]} Qd5 {[%emt 0:
00:50]} 32. Rgf1 {[%emt 0:00:01]} Rge6 {[%emt 0:00:24]} 33. Rf4 {[%emt 0:00:22]
} Qg2 {[%emt 0:02:23]} 34. Rf2 {[%emt 0:00:32]} Qd5 {[%emt 0:00:03]} 35. Ra1 {
[%emt 0:01:50]} c5 {[%emt 0:00:32]} 36. Ra4 {[%emt 0:00:15]} Rc6 {[%emt 0:00:
34]} 37. Rc4 {[%emt 0:01:15]} b5 {[%emt 0:03:01]} 38. axb6 {[%emt 0:00:03]}
cxb6 {[%emt 0:00:01]} 39. d4 {[%emt 0:02:34]} Rec8 {[%emt 0:04:20]} 40. dxc5 {
[%emt 0:00:31]} Rxc5 {[%emt 0:02:32]} 41. Rxc5 {[%emt 0:00:23]} Qxc5 {[%emt 0:
00:38]} 42. Bd4 {[%emt 0:00:47]} Qc6 {[%emt 0:01:47]} 43. Bxb6 {[%emt 0:01:42]}
f4 {[%emt 0:00:11]} 44. Qd4 {[%emt 0:00:40]} Bf5 {[%emt 0:02:10]} 45. c4 {
[%emt 0:04:50]} f3 {[%emt 0:00:02]} 46. Ba5 {[%emt 0:00:18]} Rg8 {[%emt 0:00:
53]} 47. Qd5 {[%emt 0:00:36]} Qxd5 {[%emt 0:00:26]} 48. cxd5 {[%emt 0:00:01]}
Rg2 {[%emt 0:00:02]} 49. Bb6 {[%emt 0:00:26]} Kb7 {[%emt 0:00:54]} 50. Be3 {
[%emt 0:00:02]} Be4 {[%emt 0:00:19]} 51. d6 {[%emt 0:00:01]} Rxf2+ {[%emt 0:00:
52]} 52. Bxf2 {[%emt 0:00:02]} Bd5 {[%emt 0:00:57]} 53. b4 {[%emt 0:00:58]} Kc6
{[%emt 0:00:27]} 54. Kc3 {[%emt 0:00:03]} Be6 {[%emt 0:00:31]} 55. Kd4 {[%emt
0:00:19]} Bf5 {[%emt 0:00:32]} 56. Bg3 {[%emt 0:00:57]} Be6 {[%emt 0:00:29]}
57. Ke3 {[%emt 0:00:37]} Bd5 {[%emt 0:00:23]} 58. Kf4 {[%emt 0:01:50]} Kd7 {
[%emt 0:00:09]} 59. Kg4 {[%emt 0:00:46]} Be6+ {[%emt 0:00:03]} 60. Kxf3 {[%emt
0:00:08]} Kc6 {[%emt 0:00:20]} 61. Kf4 {[%emt 0:00:08]} Kd7 {[%emt 0:00:22]}
62. Bf2 {[%emt 0:00:19]} Kc6 {[%emt 0:00:20]} 63. Kg5 {[%emt 0:00:41]} Kd7 {
[%emt 0:00:12]} 1/2-1/2

[Event "XXXV Open Int. de Benasque"]
[Site "Benasque"]
[Date "2015.07.09"]
[Round "8"]
[White "Rodshtein, Maxim"]
[Black "Manolache, Marius"]
[Result "1-0"]
[ECO "E71"]
[WhiteElo "2678"]
[BlackElo "2467"]
[Annotator "Robot 9"]
[PlyCount "107"]
[EventDate "2015.??.??"]
[EventCountry "ESP"]
[TimeControl "5400+30"]

1. d4 Nf6 2. c4 g6 3. Nc3 Bg7 4. e4 d6 5. h3 O-O 6. Nf3 Na6 7. Be3 c5 8. g4 Qa5
9. Qd2 cxd4 10. Nxd4 Nc5 11. Bg2 h5 12. f3 Bd7 13. Rb1 Ne6 14. b4 Qd8 15. Nb3
Rc8 16. Bf1 b5 17. Na5 a6 18. Rc1 Rb8 19. cxb5 axb5 20. Be2 Rc8 21. Kf2 Qe8 22.
Rhg1 h4 23. Qd3 g5 24. Nxb5 Rb8 25. a4 Bxb5 26. axb5 Nd7 27. Qd2 Ne5 28. Nc6
Ng6 29. Bxg5 Nxg5 30. Qxg5 Be5 31. Nxe5 dxe5 32. Rc6 e6 33. Rd1 Rb7 34. Bc4 Kg7
35. Rdd6 Qe7 36. Qxe7 Nxe7 37. Rc5 Ng6 38. Ke3 Rfb8 39. Rdc6 Kf6 40. Rc7 Rb6
41. Rd7 Nf4 42. Rcc7 Rf8 43. Bf1 Rbb8 44. Kd2 Ra8 45. b6 Rab8 46. b7 Ng6 47.
Ba6 Nf4 48. Rc8 Nxh3 49. Rxf8 Rxf8 50. Rc7 Rd8+ 51. Ke3 Nf4 52. Rc8 Ng2+ 53.
Ke2 Nf4+ 54. Ke1 1-0